[Event "*** Titled Tuesday Blitz"]
[Site "Chess.com"]
[Date "2019.02.05"]
[Round "8"]
[White "Vadim_Biliy"]
[Black "NemtsevIgor"]
[Result "0-1"]
[WhiteElo "2121"]
[BlackElo "2309"]
[TimeControl "180+2"]
[EndTime "14:58:13 PST"]
[Termination "NemtsevIgor won by resignation"]

1. e4 {[%clk 0:03:01.9]} 1... c6 {[%clk 0:03:00.7]} 2. d4 {[%clk 0:02:59.4]}
2... d5 {[%clk 0:03:01.8]} 3. Nc3 {[%clk 0:02:56.7]} 3... h6 {[%clk 0:03:02.4]}
4. Nf3 {[%clk 0:02:55.1]} 4... Nf6 {[%clk 0:03:02.9]} 5. Bd3 {[%clk 0:02:53.4]}
5... dxe4 {[%clk 0:03:03.1]} 6. Nxe4 {[%clk 0:02:53.5]} 6... Nxe4 {[%clk
0:03:04.2]} 7. Bxe4 {[%clk 0:02:54]} 7... Bf5 {[%clk 0:03:05.3]} 8. Bxf5 {[%clk
0:02:54]} 8... Qa5+ {[%clk 0:03:06.1]} 9. c3 {[%clk 0:02:49.5]} 9... Qxf5 {[%clk
0:03:06.7]} 10. O-O {[%clk 0:02:50.1]} 10... e6 {[%clk 0:03:06.4]} 11. Re1
{[%clk 0:02:48.5]} 11... Nd7 {[%clk 0:03:04.3]} 12. Ne5 {[%clk 0:02:45.7]} 12...
Nxe5 {[%clk 0:02:58.4]} 13. Rxe5 {[%clk 0:02:42.8]} 13... Qg6 {[%clk 0:02:58.4]}
14. Qb3 {[%clk 0:02:34.9]} 14... O-O-O {[%clk 0:02:53.8]} 15. Ra5 {[%clk
0:02:26.5]} 15... a6 {[%clk 0:02:33.5]} 16. Bf4 {[%clk 0:02:19.9]} 16... Bd6
{[%clk 0:02:31.5]} 17. Bxd6 {[%clk 0:02:16.4]} 17... Rxd6 {[%clk 0:02:32.1]} 18.
Re1 {[%clk 0:02:11.3]} 18... Rhd8 {[%clk 0:02:24.8]} 19. h3 {[%clk 0:02:05.3]}
19... Rd5 {[%clk 0:02:22.1]} 20. Re5 {[%clk 0:01:48.3]} 20... Rxa5 {[%clk
0:02:05.7]} 21. Rxa5 {[%clk 0:01:47.7]} 21... Qb1+ {[%clk 0:02:05]} 22. Kh2
{[%clk 0:01:46.3]} 22... Qe1 {[%clk 0:02:01.9]} 23. Qc2 {[%clk 0:01:37]} 23...
Rd5 {[%clk 0:01:44.7]} 24. Rxd5 {[%clk 0:01:36.3]} 24... cxd5 {[%clk 0:01:45.8]}
25. g3 {[%clk 0:01:36.3]} 25... Qf1 {[%clk 0:01:42]} 26. b3 {[%clk 0:01:24.1]}
26... b5 {[%clk 0:01:35.7]} 27. Qd2 {[%clk 0:01:17.2]} 27... Kb7 {[%clk
0:01:33.3]} 28. a4 {[%clk 0:01:10]} 28... g5 {[%clk 0:01:29.5]} 29. axb5 {[%clk
0:01:08.7]} 29... axb5 {[%clk 0:01:30.1]} 30. Qe3 {[%clk 0:01:01.8]} 30... Kc6
{[%clk 0:01:26]} 31. Qf3 {[%clk 0:01:01.2]} 31... f5 {[%clk 0:01:22.3]} 32. Qe3
{[%clk 0:01:00.8]} 32... Kd7 {[%clk 0:01:21.9]} 33. Qf3 {[%clk 0:00:50.9]} 33...
h5 {[%clk 0:01:16.4]} 34. g4 {[%clk 0:00:43.8]} 34... hxg4 {[%clk 0:01:14]} 35.
hxg4 {[%clk 0:00:44.4]} 35... f4 {[%clk 0:01:11.4]} 36. b4 {[%clk 0:00:41.6]}
36... Qe1 {[%clk 0:01:04]} 37. Kg2 {[%clk 0:00:37.3]} 37... Qe4 {[%clk
0:01:01.3]} 38. Qxe4 {[%clk 0:00:37]} 38... dxe4 {[%clk 0:01:02]} 39. Kf1 {[%clk
0:00:29.1]} 39... Kc6 {[%clk 0:00:59.6]} 40. Ke2 {[%clk 0:00:28.4]} 40... Kd5
{[%clk 0:01:00.3]} 41. Kd2 {[%clk 0:00:28.2]} 41... Kc4 {[%clk 0:01:01.3]} 42.
Kc2 {[%clk 0:00:29.1]} 42... e3 {[%clk 0:00:41.7]} 43. f3 {[%clk 0:00:25.5]}
43... e2 {[%clk 0:00:37.5]} 44. Kd2 {[%clk 0:00:26.5]} 44... e1=Q+ {[%clk
0:00:38.8]} 45. Kxe1 {[%clk 0:00:27.4]} 45... Kxc3 {[%clk 0:00:40.3]} 46. Ke2
{[%clk 0:00:27.2]} 46... Kxb4 {[%clk 0:00:41.1]} 47. Kd3 {[%clk 0:00:27.7]}
47... Ka3 {[%clk 0:00:41.5]} 48. Ke4 {[%clk 0:00:28.7]} 48... b4 {[%clk
0:00:42.4]} 49. Ke5 {[%clk 0:00:30]} 49... b3 {[%clk 0:00:43.9]} 50. Kxe6 {[%clk
0:00:31.4]} 50... b2 {[%clk 0:00:45.4]} 51. d5 {[%clk 0:00:32.8]} 51... b1=Q
{[%clk 0:00:46.9]} 52. d6 {[%clk 0:00:34]} 52... Qb3+ {[%clk 0:00:43.3]} 53. Kf6
{[%clk 0:00:34.6]} 53... Qxf3 {[%clk 0:00:42.6]} 54. Kxg5 {[%clk 0:00:29.9]}
54... Qd5+ {[%clk 0:00:40.5]} 55. Kxf4 {[%clk 0:00:30.7]} 55... Qxd6+ {[%clk
0:00:41.8]} 56. Kf5 {[%clk 0:00:29.9]} 56... Qf8+ {[%clk 0:00:42.2]} 57. Kg6
{[%clk 0:00:30.2]} 57... Qg8+ {[%clk 0:00:43.4]} 58. Kf5 {[%clk 0:00:31.1]}
58... Kb4 {[%clk 0:00:44.6]} 59. g5 {[%clk 0:00:32.4]} 59... Kc5 {[%clk
0:00:45.7]} 60. Kf6 {[%clk 0:00:33.7]} 60... Kd6 {[%clk 0:00:46.6]} 61. g6
{[%clk 0:00:35.1]} 61... Kd7 {[%clk 0:00:46.8]} 62. g7 {[%clk 0:00:36.2]} 62...
Kd6 {[%clk 0:00:47.4]} 63. Kg6 {[%clk 0:00:37.4]} 63... Ke6 {[%clk 0:00:48.6]}
0-1

[Event "*** Titled Tuesday Blitz"]
[Site "Chess.com"]
[Date "2019.02.05"]
[Round "8"]
[White "riconaipe"]
[Black "r31415"]
[Result "0-1"]
[WhiteElo "2416"]
[BlackElo "2304"]
[TimeControl "180+2"]
[EndTime "14:58:22 PST"]
[Termination "r31415 won by resignation"]

1. d4 {[%clk 0:03:01.9]} 1... e6 {[%clk 0:03:00.8]} 2. c4 {[%clk 0:03:02.5]}
2... Nf6 {[%clk 0:03:02.3]} 3. Nc3 {[%clk 0:03:04.1]} 3... Bb4 {[%clk 0:03:03]}
4. Qc2 {[%clk 0:03:05.6]} 4... O-O {[%clk 0:03:04.1]} 5. e4 {[%clk 0:03:05.1]}
5... d6 {[%clk 0:03:01.2]} 6. e5 {[%clk 0:03:06.6]} 6... dxe5 {[%clk 0:02:57.1]}
7. dxe5 {[%clk 0:03:02.7]} 7... Nfd7 {[%clk 0:02:55.4]} 8. Nf3 {[%clk
0:03:00.3]} 8... Nc6 {[%clk 0:02:29.6]} 9. a3 {[%clk 0:02:59.4]} 9... Be7 {[%clk
0:02:24.3]} 10. Bf4 {[%clk 0:02:57.2]} 10... b6 {[%clk 0:02:19.4]} 11. Bd3
{[%clk 0:02:54]} 11... h6 {[%clk 0:02:16.4]} 12. Be4 {[%clk 0:02:42.4]} 12...
Bb7 {[%clk 0:02:15.8]} 13. O-O-O {[%clk 0:02:25.8]} 13... Qe8 {[%clk 0:02:15.1]}
14. h4 {[%clk 0:02:13.5]} 14... Nc5 {[%clk 0:02:14]} 15. Bh7+ {[%clk 0:02:02.8]}
15... Kh8 {[%clk 0:02:14.5]} 16. g4 {[%clk 0:01:57.8]} 16... Na5 {[%clk
0:01:48.5]} 17. Rh3 {[%clk 0:01:49.8]} 17... Nxc4 {[%clk 0:01:34.9]} 18. h5
{[%clk 0:01:44.4]} 18... Rd8 {[%clk 0:01:31.4]} 19. g5 {[%clk 0:01:32.7]} 19...
Rxd1+ {[%clk 0:01:29.2]} 20. Nxd1 {[%clk 0:01:31.9]} 20... hxg5 {[%clk
0:01:30.4]} 21. Nxg5 {[%clk 0:01:23.8]} 21... f5 {[%clk 0:00:52.9]} 22. Bg6
{[%clk 0:01:08.2]} 22... Qb5 {[%clk 0:00:33.1]} 23. Nf7+ {[%clk 0:00:35.3]}
23... Rxf7 {[%clk 0:00:17.2]} 24. Bxf7 {[%clk 0:00:30.1]} 24... Be4 {[%clk
0:00:19.1]} 25. Qc3 {[%clk 0:00:16.7]} 25... Na4 {[%clk 0:00:14.7]} 26. Qb3
{[%clk 0:00:11]} 26... Qc6 {[%clk 0:00:12]} 27. Nc3 {[%clk 0:00:07.7]} 27...
Nxc3 {[%clk 0:00:04.1]} 28. h6 {[%clk 0:00:09.3]} 28... Ne2+ {[%clk 0:00:03.9]}
29. Kd1 {[%clk 0:00:10.2]} 29... Qd5+ {[%clk 0:00:03.7]} 30. Ke1 {[%clk
0:00:10.4]} 30... Nxf4 {[%clk 0:00:03.3]} 31. hxg7+ {[%clk 0:00:09.4]} 31...
Kxg7 {[%clk 0:00:05.2]} 32. Qg3+ {[%clk 0:00:09.7]} 32... Kxf7 {[%clk
0:00:06.5]} 33. Rh7+ {[%clk 0:00:11.3]} 33... Ke8 {[%clk 0:00:08]} 34. Qxf4
{[%clk 0:00:10]} 34... Qd3 {[%clk 0:00:04.6]} 35. Rh8+ {[%clk 0:00:08.3]} 35...
Kd7 {[%clk 0:00:06]} 36. f3 {[%clk 0:00:08.9]} 36... Qb1+ {[%clk 0:00:05.7]} 37.
Kf2 {[%clk 0:00:10.1]} 37... Qxb2+ {[%clk 0:00:06.8]} 38. Kg3 {[%clk 0:00:11.7]}
38... Bd5 {[%clk 0:00:06.6]} 39. Rh7 {[%clk 0:00:07.8]} 39... Qxe5 {[%clk
0:00:07.5]} 40. Qxe5 {[%clk 0:00:09.3]} 40... Nxe5 {[%clk 0:00:09.4]} 41. Kf4
{[%clk 0:00:11]} 41... Nd3+ {[%clk 0:00:06.8]} 42. Ke3 {[%clk 0:00:12.4]} 42...
Ne5 {[%clk 0:00:07.4]} 43. f4 {[%clk 0:00:13.3]} 43... Nc4+ {[%clk 0:00:08.4]}
44. Kd4 {[%clk 0:00:11.6]} 44... Nxa3 {[%clk 0:00:10.3]} 45. Ke5 {[%clk
0:00:12.6]} 45... Nc4+ {[%clk 0:00:06.3]} 46. Kd4 {[%clk 0:00:13.3]} 46... a5
{[%clk 0:00:06.3]} 47. Rg7 {[%clk 0:00:13.1]} 47... a4 {[%clk 0:00:06.7]} 48.
Rh7 {[%clk 0:00:14.1]} 48... a3 {[%clk 0:00:07.9]} 49. Rh2 {[%clk 0:00:13.9]}
49... Bf6+ {[%clk 0:00:08]} 50. Kd3 {[%clk 0:00:15.2]} 50... Bb2 {[%clk
0:00:09.3]} 51. Rh7+ {[%clk 0:00:15.8]} 51... Kc6 {[%clk 0:00:09.8]} 0-1

[Event "*** Titled Tuesday Blitz"]
[Site "Chess.com"]
[Date "2019.02.05"]
[Round "8"]
[White "KRASAVCHIK2002"]
[Black "SolidAsARook"]
[Result "0-1"]
[WhiteElo "2276"]
[BlackElo "2211"]
[TimeControl "180+2"]
[EndTime "14:58:23 PST"]
[Termination "SolidAsARook won on time"]

1. e4 {[%clk 0:03:01.9]} 1... e5 {[%clk 0:03:00.4]} 2. Nf3 {[%clk 0:03:02.8]}
2... Nc6 {[%clk 0:03:01.3]} 3. Bb5 {[%clk 0:03:04.3]} 3... Nf6 {[%clk
0:03:01.8]} 4. O-O {[%clk 0:03:04.7]} 4... Bc5 {[%clk 0:03:02.2]} 5. c3 {[%clk
0:03:05.1]} 5... O-O {[%clk 0:03:01.9]} 6. d4 {[%clk 0:03:05.8]} 6... Bb6 {[%clk
0:03:03]} 7. dxe5 {[%clk 0:03:02.9]} 7... Nxe4 {[%clk 0:03:02.7]} 8. Qd5 {[%clk
0:02:54.5]} 8... Nc5 {[%clk 0:03:00.8]} 9. Rd1 {[%clk 0:02:23.1]} 9... Qe7
{[%clk 0:02:18.1]} 10. Bg5 {[%clk 0:02:21.5]} 10... Qe6 {[%clk 0:02:14.3]} 11.
Bc4 {[%clk 0:02:18.3]} 11... Qxd5 {[%clk 0:02:08]} 12. Bxd5 {[%clk 0:02:20.2]}
12... Ne6 {[%clk 0:02:07.4]} 13. Be3 {[%clk 0:02:12.9]} 13... Bxe3 {[%clk
0:02:04.8]} 14. fxe3 {[%clk 0:02:14.8]} 14... Ne7 {[%clk 0:02:02.3]} 15. Be4
{[%clk 0:02:10.5]} 15... f6 {[%clk 0:01:53.4]} 16. exf6 {[%clk 0:02:10.1]} 16...
Rxf6 {[%clk 0:01:53.8]} 17. Nbd2 {[%clk 0:02:11.4]} 17... d6 {[%clk 0:01:51.4]}
18. Bc2 {[%clk 0:02:05.3]} 18... Nf5 {[%clk 0:01:49.7]} 19. Bxf5 {[%clk
0:02:01.6]} 19... Rxf5 {[%clk 0:01:50.1]} 20. Nd4 {[%clk 0:02:02.5]} 20... Rf7
{[%clk 0:01:47]} 21. Ne4 {[%clk 0:01:57.7]} 21... h6 {[%clk 0:01:40]} 22. Rf1
{[%clk 0:01:51]} 22... Bd7 {[%clk 0:01:37.3]} 23. Rxf7 {[%clk 0:01:50.8]} 23...
Kxf7 {[%clk 0:01:38.5]} 24. Rf1+ {[%clk 0:01:52.4]} 24... Kg8 {[%clk 0:01:39.7]}
25. c4 {[%clk 0:01:49.3]} 25... Rf8 {[%clk 0:01:36.1]} 26. Rxf8+ {[%clk
0:01:46.6]} 26... Kxf8 {[%clk 0:01:36]} 27. Nc3 {[%clk 0:01:46.4]} 27... Nc5
{[%clk 0:01:32.8]} 28. Ndb5 {[%clk 0:01:39.5]} 28... Bxb5 {[%clk 0:01:19.3]} 29.
Nxb5 {[%clk 0:01:39.2]} 29... Nd3 {[%clk 0:01:20.4]} 30. b3 {[%clk 0:01:35.1]}
30... Nc1 {[%clk 0:01:19.5]} 31. Nxc7 {[%clk 0:01:30.5]} 31... Nxa2 {[%clk
0:01:20.2]} 32. Nb5 {[%clk 0:01:24.5]} 32... Ke7 {[%clk 0:01:11.1]} 33. Nxa7
{[%clk 0:01:10.4]} 33... Nc1 {[%clk 0:01:11.8]} 34. b4 {[%clk 0:01:11.2]} 34...
Nd3 {[%clk 0:01:12.1]} 35. b5 {[%clk 0:01:12.2]} 35... Ne5 {[%clk 0:01:10.1]}
36. Nc8+ {[%clk 0:01:04.4]} 36... Ke6 {[%clk 0:01:06.4]} 37. Nb6 {[%clk
0:01:03.8]} 37... Ng4 {[%clk 0:01:06.8]} 38. e4 {[%clk 0:01:03.3]} 38... Ke5
{[%clk 0:01:07.5]} 39. Nd7+ {[%clk 0:00:50.3]} 39... Ke6 {[%clk 0:01:00.3]} 40.
Nb6 {[%clk 0:00:43.1]} 40... Ke5 {[%clk 0:01:00.8]} 41. Nd7+ {[%clk 0:00:44.1]}
41... Ke6 {[%clk 0:01:01.8]} 42. Nf8+ {[%clk 0:00:26.8]} 42... Kf7 {[%clk
0:00:46.8]} 43. Nd7 {[%clk 0:00:27.5]} 43... Ke6 {[%clk 0:00:47.8]} 44. Nb6
{[%clk 0:00:28.7]} 44... Ke5 {[%clk 0:00:33.1]} 45. Nd7+ {[%clk 0:00:27.7]}
45... Kd4 {[%clk 0:00:28.1]} 46. Nb6 {[%clk 0:00:10.8]} 46... Ne5 {[%clk
0:00:23.7]} 47. Nc8 {[%clk 0:00:09.1]} 47... Nxc4 {[%clk 0:00:24.3]} 48. Kf2
{[%clk 0:00:06.4]} 48... Kxe4 {[%clk 0:00:25]} 49. Kg3 {[%clk 0:00:07.6]} 49...
d5 {[%clk 0:00:24.7]} 50. Kf2 {[%clk 0:00:04.9]} 50... Kd4 {[%clk 0:00:14.3]}
0-1

[Event "*** Titled Tuesday Blitz"]
[Site "Chess.com"]
[Date "2019.02.05"]
[Round "8"]
[White "Pilopa"]
[Black "Vuks91"]
[Result "0-1"]
[WhiteElo "2468"]
[BlackElo "2434"]
[TimeControl "180+2"]
[EndTime "14:58:24 PST"]
[Termination "Vuks91 won by resignation"]

1. d4 {[%clk 0:03:01.9]} 1... Nf6 {[%clk 0:03:00.1]} 2. c4 {[%clk 0:03:01.9]}
2... g6 {[%clk 0:02:59.9]} 3. Nc3 {[%clk 0:03:02.5]} 3... Bg7 {[%clk 0:03:01.5]}
4. e4 {[%clk 0:03:03.1]} 4... O-O {[%clk 0:03:03.1]} 5. Nf3 {[%clk 0:03:04.5]}
5... d6 {[%clk 0:03:04.1]} 6. Be2 {[%clk 0:03:06.1]} 6... e5 {[%clk 0:03:05.3]}
7. O-O {[%clk 0:03:07.3]} 7... Nc6 {[%clk 0:03:06.4]} 8. dxe5 {[%clk 0:03:08.7]}
8... Nxe5 {[%clk 0:03:02.4]} 9. Bf4 {[%clk 0:03:09.2]} 9... Nxf3+ {[%clk
0:02:51.5]} 10. Bxf3 {[%clk 0:03:11.1]} 10... Be6 {[%clk 0:02:53.1]} 11. Be2
{[%clk 0:03:09.9]} 11... Nd7 {[%clk 0:02:52.2]} 12. Rc1 {[%clk 0:03:09.9]} 12...
a6 {[%clk 0:02:42.9]} 13. Qd2 {[%clk 0:03:10.2]} 13... Nc5 {[%clk 0:02:42.2]}
14. b4 {[%clk 0:02:25.4]} 14... Nd7 {[%clk 0:02:29.1]} 15. Nd5 {[%clk
0:02:20.6]} 15... Ne5 {[%clk 0:01:59.8]} 16. Bg5 {[%clk 0:02:15.5]} 16... f6
{[%clk 0:01:59.8]} 17. Bh6 {[%clk 0:02:11.1]} 17... Qd7 {[%clk 0:01:59.7]} 18.
Bxg7 {[%clk 0:02:09.3]} 18... Kxg7 {[%clk 0:02:01.6]} 19. f4 {[%clk 0:02:06.3]}
19... Bxd5 {[%clk 0:01:58]} 20. fxe5 {[%clk 0:01:42.3]} 20... Be6 {[%clk
0:01:06.6]} 21. exf6+ {[%clk 0:01:40.6]} 21... Rxf6 {[%clk 0:01:08.5]} 22. Rxf6
{[%clk 0:01:40.3]} 22... Kxf6 {[%clk 0:01:10.4]} 23. Qd4+ {[%clk 0:01:08.8]}
23... Kf7 {[%clk 0:01:11.1]} 24. Rf1+ {[%clk 0:01:08.3]} 24... Kg8 {[%clk
0:01:12.3]} 25. Qf6 {[%clk 0:00:54.5]} 25... Re8 {[%clk 0:01:07.5]} 26. Qd4
{[%clk 0:00:41.3]} 26... b6 {[%clk 0:00:50.3]} 27. h3 {[%clk 0:00:39.8]} 27...
Qg7 {[%clk 0:00:45.2]} 28. Qd2 {[%clk 0:00:40.4]} 28... Rf8 {[%clk 0:00:43]} 29.
Rxf8+ {[%clk 0:00:33.9]} 29... Qxf8 {[%clk 0:00:44.3]} 30. Qd4 {[%clk
0:00:30.4]} 30... Qf4 {[%clk 0:00:37.5]} 31. c5 {[%clk 0:00:25.8]} 31... bxc5
{[%clk 0:00:38.5]} 32. bxc5 {[%clk 0:00:27]} 32... Qc1+ {[%clk 0:00:39.4]} 33.
Kh2 {[%clk 0:00:26.7]} 33... Qxc5 {[%clk 0:00:40.1]} 34. Qxc5 {[%clk 0:00:22.7]}
34... dxc5 {[%clk 0:00:42]} 35. Bxa6 {[%clk 0:00:23.5]} 35... Bxa2 {[%clk
0:00:43.4]} 36. Kg3 {[%clk 0:00:18.7]} 36... c4 {[%clk 0:00:30.6]} 37. Kf4
{[%clk 0:00:18.2]} 37... c3 {[%clk 0:00:30.9]} 38. Ke3 {[%clk 0:00:19.1]} 38...
Bb1 {[%clk 0:00:29.8]} 39. Bd3 {[%clk 0:00:17.9]} 39... Bxd3 {[%clk 0:00:29.9]}
40. Kxd3 {[%clk 0:00:19.1]} 40... Kf7 {[%clk 0:00:31.5]} 41. Kxc3 {[%clk
0:00:20.6]} 41... Ke6 {[%clk 0:00:32.8]} 42. Kd4 {[%clk 0:00:21.9]} 42... Kd6
{[%clk 0:00:31.8]} 43. e5+ {[%clk 0:00:08.4]} 43... Ke6 {[%clk 0:00:32.6]} 44.
Ke4 {[%clk 0:00:09.9]} 44... c6 {[%clk 0:00:28.7]} 45. g3 {[%clk 0:00:10.5]}
45... h6 {[%clk 0:00:29.6]} 46. h4 {[%clk 0:00:03.2]} 46... c5 {[%clk
0:00:28.6]} 47. g4 {[%clk 0:00:04.3]} 47... g5 {[%clk 0:00:22.1]} 48. hxg5
{[%clk 0:00:03.4]} 48... hxg5 {[%clk 0:00:24]} 49. Kd3 {[%clk 0:00:03.5]} 49...
Kxe5 {[%clk 0:00:25.9]} 50. Kc4 {[%clk 0:00:05]} 50... Kf4 {[%clk 0:00:27.1]}
51. Kxc5 {[%clk 0:00:06.1]} 51... Kxg4 {[%clk 0:00:29]} 52. Kd4 {[%clk 0:00:08]}
52... Kf3 {[%clk 0:00:30.3]} 53. Kd3 {[%clk 0:00:09.6]} 53... g4 {[%clk
0:00:31.9]} 54. Kd2 {[%clk 0:00:11.5]} 54... g3 {[%clk 0:00:33.5]} 55. Ke1
{[%clk 0:00:13.4]} 55... g2 {[%clk 0:00:35.1]} 56. Kd2 {[%clk 0:00:14.3]} 56...
g1=Q {[%clk 0:00:36.6]} 57. Kc2 {[%clk 0:00:16.2]} 57... Qd4 {[%clk 0:00:37.7]}
0-1

[Event "*** Titled Tuesday Blitz"]
[Site "Chess.com"]
[Date "2019.02.05"]
[Round "8"]
[White "Koksik_13"]
[Black "EugeneRougon"]
[Result "0-1"]
[WhiteElo "2664"]
[BlackElo "2590"]
[TimeControl "180+2"]
[EndTime "14:58:34 PST"]
[Termination "EugeneRougon won on time"]

1. e4 {[%clk 0:02:52.1]} 1... d6 {[%clk 0:03:00.2]} 2. Bc4 {[%clk 0:02:51.7]}
2... Nf6 {[%clk 0:02:58.5]} 3. Nc3 {[%clk 0:02:52.3]} 3... c6 {[%clk 0:02:56.6]}
4. Nf3 {[%clk 0:02:52.4]} 4... d5 {[%clk 0:02:54.7]} 5. exd5 {[%clk 0:02:53.2]}
5... cxd5 {[%clk 0:02:56]} 6. Be2 {[%clk 0:02:54.7]} 6... Nc6 {[%clk 0:02:44.8]}
7. O-O {[%clk 0:02:52.7]} 7... d4 {[%clk 0:02:41.5]} 8. Nb5 {[%clk 0:02:49.8]}
8... e5 {[%clk 0:02:28.7]} 9. d3 {[%clk 0:02:49]} 9... h6 {[%clk 0:02:16.1]} 10.
Re1 {[%clk 0:02:49.2]} 10... a6 {[%clk 0:02:07]} 11. Na3 {[%clk 0:02:49.8]}
11... Bxa3 {[%clk 0:01:55.7]} 12. bxa3 {[%clk 0:02:48.9]} 12... O-O {[%clk
0:01:57.6]} 13. Bf1 {[%clk 0:02:50.4]} 13... Re8 {[%clk 0:01:58.1]} 14. Rb1
{[%clk 0:02:51.1]} 14... Nd5 {[%clk 0:01:33]} 15. Bd2 {[%clk 0:02:43.2]} 15...
Qd6 {[%clk 0:01:17.6]} 16. h3 {[%clk 0:02:41.8]} 16... b5 {[%clk 0:01:15.4]} 17.
a4 {[%clk 0:02:41.3]} 17... bxa4 {[%clk 0:01:14.2]} 18. g3 {[%clk 0:02:37.6]}
18... Be6 {[%clk 0:01:14.1]} 19. Bg2 {[%clk 0:02:38.3]} 19... Rab8 {[%clk
0:01:08.4]} 20. Rxb8 {[%clk 0:02:38.8]} 20... Rxb8 {[%clk 0:01:10.3]} 21. Nh4
{[%clk 0:02:40.3]} 21... Ncb4 {[%clk 0:01:07.1]} 22. a3 {[%clk 0:02:39.5]} 22...
Na2 {[%clk 0:01:07.4]} 23. Qh5 {[%clk 0:02:37.6]} 23... f6 {[%clk 0:01:06]} 24.
Bxh6 {[%clk 0:02:28.2]} 24... gxh6 {[%clk 0:00:52.5]} 25. Qg6+ {[%clk
0:02:28.9]} 25... Kf8 {[%clk 0:00:52.7]} 26. Qxh6+ {[%clk 0:02:30.8]} 26... Ke7
{[%clk 0:00:50.9]} 27. Qg7+ {[%clk 0:02:30.2]} 27... Kd8 {[%clk 0:00:46.7]} 28.
Ng6 {[%clk 0:02:25.7]} 28... Nac3 {[%clk 0:00:45.9]} 29. h4 {[%clk 0:02:16.7]}
29... Qd7 {[%clk 0:00:33.8]} 30. Qh6 {[%clk 0:02:00]} 30... Kc7 {[%clk
0:00:22.8]} 31. h5 {[%clk 0:01:51.6]} 31... Bg4 {[%clk 0:00:17.5]} 32. f4 {[%clk
0:01:37.4]} 32... Ne3 {[%clk 0:00:15.2]} 33. Bh1 {[%clk 0:01:29.4]} 33... Ne2+
{[%clk 0:00:12.4]} 34. Kf2 {[%clk 0:01:25.6]} 34... exf4 {[%clk 0:00:08.5]} 35.
Nxf4 {[%clk 0:01:25]} 35... Nxf4 {[%clk 0:00:09.2]} 36. Qxf4+ {[%clk 0:01:26.5]}
36... Qd6 {[%clk 0:00:10.8]} 37. Qe4 {[%clk 0:01:25.6]} 37... Rb2 {[%clk
0:00:11.3]} 38. Rc1 {[%clk 0:01:18.1]} 38... Bf5 {[%clk 0:00:09.4]} 39. Qa8
{[%clk 0:01:06.6]} 39... Bc8 {[%clk 0:00:07.1]} 40. h6 {[%clk 0:00:30.4]} 40...
Ng4+ {[%clk 0:00:06.9]} 41. Kf1 {[%clk 0:00:31.9]} 41... Bb7 {[%clk 0:00:04.2]}
42. Bxb7 {[%clk 0:00:30.6]} 42... Rxb7 {[%clk 0:00:06.1]} 43. Re1 {[%clk
0:00:22]} 43... Ne3+ {[%clk 0:00:05.7]} 44. Kf2 {[%clk 0:00:22.9]} 44... Qe5
{[%clk 0:00:06.3]} 45. Qxa6 {[%clk 0:00:17]} 45... Qf5+ {[%clk 0:00:06.2]} 46.
Ke2 {[%clk 0:00:18.3]} 46... Qh5+ {[%clk 0:00:05.7]} 47. Kd2 {[%clk 0:00:19.4]}
47... Qxh6 {[%clk 0:00:07]} 48. Qa5+ {[%clk 0:00:19.9]} 48... Kc8 {[%clk
0:00:07.7]} 49. Qc5+ {[%clk 0:00:19.7]} 49... Rc7 {[%clk 0:00:09]} 0-1

[Event "*** Titled Tuesday Blitz"]
[Site "Chess.com"]
[Date "2019.02.05"]
[Round "8"]
[White "VeraNebolsina"]
[Black "DanielMieles1985"]
[Result "1-0"]
[WhiteElo "2386"]
[BlackElo "2574"]
[TimeControl "180+2"]
[EndTime "14:58:35 PST"]
[Termination "VeraNebolsina won by resignation"]

1. e4 {[%clk 0:03:01.5]} 1... e5 {[%clk 0:03:00.5]} 2. Nf3 {[%clk 0:02:59.7]}
2... Nc6 {[%clk 0:03:01.3]} 3. Nc3 {[%clk 0:03:00.4]} 3... Nf6 {[%clk
0:03:01.7]} 4. d4 {[%clk 0:03:01.4]} 4... exd4 {[%clk 0:03:02.2]} 5. Nxd4 {[%clk
0:03:02.4]} 5... Bb4 {[%clk 0:03:03]} 6. Nxc6 {[%clk 0:03:03.5]} 6... bxc6
{[%clk 0:03:04.9]} 7. Bd3 {[%clk 0:03:04.6]} 7... O-O {[%clk 0:03:05.8]} 8. O-O
{[%clk 0:03:05.5]} 8... d5 {[%clk 0:03:06.6]} 9. exd5 {[%clk 0:03:06.8]} 9...
cxd5 {[%clk 0:03:07.6]} 10. h3 {[%clk 0:03:08.1]} 10... Re8 {[%clk 0:03:05.7]}
11. Qf3 {[%clk 0:03:07.9]} 11... c6 {[%clk 0:02:59.3]} 12. Bf4 {[%clk
0:03:06.7]} 12... Qe7 {[%clk 0:02:57.3]} 13. Ne2 {[%clk 0:02:42.1]} 13... Ne4
{[%clk 0:02:54.1]} 14. Nd4 {[%clk 0:02:33.6]} 14... Bd7 {[%clk 0:02:50.1]} 15.
c3 {[%clk 0:02:34.1]} 15... Bd6 {[%clk 0:02:48.4]} 16. Bxd6 {[%clk 0:02:28]}
16... Qxd6 {[%clk 0:02:48.1]} 17. Rfe1 {[%clk 0:02:23.5]} 17... Qg6 {[%clk
0:02:31.7]} 18. Re3 {[%clk 0:02:10.3]} 18... f5 {[%clk 0:02:19.1]} 19. Rae1
{[%clk 0:02:02.8]} 19... Re7 {[%clk 0:02:17.3]} 20. Qf4 {[%clk 0:01:43.8]} 20...
Rae8 {[%clk 0:02:15.1]} 21. f3 {[%clk 0:01:39.2]} 21... c5 {[%clk 0:02:15]} 22.
fxe4 {[%clk 0:01:02.7]} 22... fxe4 {[%clk 0:02:09]} 23. Nf3 {[%clk 0:00:25.5]}
23... Rf7 {[%clk 0:01:24.9]} 24. Qg5 {[%clk 0:00:24.6]} 24... Qd6 {[%clk
0:01:10.9]} 25. Bxe4 {[%clk 0:00:21.1]} 25... dxe4 {[%clk 0:01:09.3]} 26. Rxe4
{[%clk 0:00:22.1]} 26... Ref8 {[%clk 0:01:01.9]} 27. Qe5 {[%clk 0:00:16.5]}
27... Qb6 {[%clk 0:00:59.7]} 28. R4e2 {[%clk 0:00:16]} 28... Bxh3 {[%clk
0:00:48.6]} 29. Ng5 {[%clk 0:00:15.9]} 29... Rf5 {[%clk 0:00:42.1]} 30. Qe6+
{[%clk 0:00:17.2]} 30... Qxe6 {[%clk 0:00:42.6]} 31. Nxe6 {[%clk 0:00:18.3]}
31... Bg4 {[%clk 0:00:44]} 32. Nxf8 {[%clk 0:00:16.5]} 32... Bxe2 {[%clk
0:00:44.7]} 33. Rxe2 {[%clk 0:00:17.5]} 33... Kxf8 {[%clk 0:00:45.3]} 34. Rf2
{[%clk 0:00:17.9]} 34... Rxf2 {[%clk 0:00:44.3]} 35. Kxf2 {[%clk 0:00:19.1]}
35... a5 {[%clk 0:00:44]} 36. Ke3 {[%clk 0:00:18.4]} 36... Ke7 {[%clk
0:00:45.2]} 37. Ke4 {[%clk 0:00:19.3]} 37... Ke6 {[%clk 0:00:46.5]} 38. b3
{[%clk 0:00:18.1]} 38... c4 {[%clk 0:00:27.7]} 39. Kd4 {[%clk 0:00:10.4]} 39...
cxb3 {[%clk 0:00:22.7]} 40. axb3 {[%clk 0:00:11.7]} 40... h5 {[%clk 0:00:23.5]}
41. c4 {[%clk 0:00:08.9]} 41... g5 {[%clk 0:00:22.7]} 42. Ke4 {[%clk 0:00:08.2]}
42... h4 {[%clk 0:00:22.8]} 43. Kf3 {[%clk 0:00:08.7]} 43... Kf5 {[%clk
0:00:22.2]} 44. Kf2 {[%clk 0:00:06.3]} 44... g4 {[%clk 0:00:21.2]} 45. Ke3
{[%clk 0:00:06.5]} 45... Ke5 {[%clk 0:00:22.3]} 46. Kf2 {[%clk 0:00:07]} 46...
Kf4 {[%clk 0:00:22.8]} 47. Kg1 {[%clk 0:00:07.1]} 47... Ke4 {[%clk 0:00:21.3]}
48. Kf1 {[%clk 0:00:08.1]} 48... Kd4 {[%clk 0:00:22.6]} 49. Kg1 {[%clk
0:00:09.1]} 49... Kc5 {[%clk 0:00:18.4]} 50. Kf2 {[%clk 0:00:10]} 50... Kb4
{[%clk 0:00:19.6]} 51. Ke3 {[%clk 0:00:10.4]} 51... Kxb3 {[%clk 0:00:11.2]} 52.
c5 {[%clk 0:00:11.2]} 52... a4 {[%clk 0:00:12.7]} 53. c6 {[%clk 0:00:12.5]}
53... a3 {[%clk 0:00:13.9]} 54. c7 {[%clk 0:00:13.8]} 54... a2 {[%clk
0:00:15.4]} 55. c8=Q {[%clk 0:00:14.8]} 55... a1=N {[%clk 0:00:16]} 56. Qxg4
{[%clk 0:00:14.2]} 1-0